[Event "Reykjavik Open 2024"]
[Site "Reykjavik"]
[Date "2024.03.18"]
[Round "6.8"]
[White "Can, Emre"]
[Black "Tania, Sachdev"]
[Result "1-0"]
[ECO "C78"]
[WhiteElo "2551"]
[BlackElo "2393"]
[Annotator "TA"]
[PlyCount "93"]
[EventDate "2024.03.12"]
[EventCountry "ISL"]
[SourceTitle "playchess.com"]
[Source "ChessBase"]
[SourceQuality "1"]
[TimeControl "40/5400+30:1800+30"]

{[%evp 22,93,25,2,62,55,58,0,0,0,25,29,25,25,23,-25,-27,-40,29,31,17,39,21,25,25,28,32,0,0,1,31,14,97,87,105,30,21,-18,0,0,0,0,0,0,12,0,0,-25,423,428,425,410,410,378,613,492,492,520,533,549,579,559,552,524,462,357,443,311,316,296,552,545,1792,415]} 1. e4 {[%emt 0:09:13]} e5 {[%emt 0:00:05]} 2. Nf3 {[%emt 0:00:15]} Nc6 {[%emt 0:00:04]} 3. Bb5 {[%emt 0:00:11]} a6 {[%emt 0:00:05]} 4. Ba4 {[%emt 0:00:07]} Nf6 {[%emt 0:00:24]} 5. O-O {[%emt 0:00:53]} b5 {[%emt 0:00:59]} 6. Bb3 {[%emt 0:00:09]} Bb7 {[%emt 0:00:06]} 7. Re1 {[%emt 0:00:37]} Bc5 {[%emt 0:01:19]} 8. c3 {[%emt 0:00:23]} d6 {[%emt 0:02:42]} 9. d4 {[%emt 0:00:39]} Bb6 {[%emt 0:00:01]} 10. a4 {[%emt 0:00:17]} O-O {[%emt 0:07:55]} 11. Bg5 {[%emt 0:01:44]} h6 {[%emt 0:00:56]} 12. Bh4 {[%emt 0:00:08]} Qe7 {[%emt 0:08:39]} (12... exd4 $11 13. axb5 (13. Nxd4 Nxd4 14. cxd4 g5 $17) (13. cxd4 g5 $11) 13... axb5 14. Rxa8 Bxa8) 13. d5 $14 {[%emt 0:28:23]} Na5 {[%emt 0:05:36] [#] Hoping for ...g5.} 14. Bxf6 {[%emt 0:00:22]} (14. Ba2 $14) 14... Qxf6 $11 {[%emt 0:00:20] The position is equal.} 15. Ba2 {[%emt 0:00:07]} g5 {[%emt 0:22:58] Threatens to win with ...g4.} 16. b4 {[%emt 0:16:42]} Nc4 {[%emt 0:00:49]} 17. Bxc4 {[%emt 0:00:11]} bxc4 {[%emt 0:00:03]} 18. a5 {[%emt 0:03:05]} (18. Qe2 $142) 18... Ba7 {[%emt 0:00:52] [#] ...g4 would now be deadly.} 19. Qe2 {[%emt 0:00:19][%cal Ob1a3]} c6 {[%emt 0:03:14]} (19... Qf4 $15 20. Nbd2 (20. Qxc4 $2 g4 $19) 20... f5) 20. dxc6 {[%emt 0:01:58]} Bxc6 {[%emt 0:00:04]} 21. Na3 $36 {[%emt 0:00:46][%cal Of3d2,Bb1a3,Ba3c4,Bc4a5][%mdl 2080] White is more active.} Rac8 {[%emt 0:02:14]} 22. Nd2 {[%emt 0:04:10]} (22. Nxc4 $2 Bb5 23. Nfd2 Qe6 $19) 22... Rfd8 {[%emt 0:35:53]} 23. Ndxc4 {[%emt 0:03:21]} (23. Naxc4 $2 Bb5 24. h3 Qe6 $19) 23... Bxe4 {[%emt 0:00:04]} 24. Nb6 {[%emt 0:10:13]} (24. Qxe4 $5 Bxf2+ 25. Kh1 $15) 24... Bxb6 {[%emt 0:00:06]} 25. axb6 {[%emt 0:00:02]} Bb7 {[%emt 0:00:08][%cal Od6d5]} (25... d5 $5) 26. Nc4 {[%emt 0:01:31]} d5 {[%emt 0:00:07]} (26... Rc6 $11) 27. Na5 {[%emt 0:02:09] White is more active.} (27. Qxe5 Qxe5 28. Nxe5 Rd6 $14) 27... Qxb6 {[%emt 0:01:04]} 28. Qxe5 {[%emt 0:00:07]} ({White should try} 28. Nxb7 $16 Qxb7 29. Rxa6 (29. Qxe5 Qc6 $11)) 28... d4 {[%emt 0:06:23]} 29. cxd4 {[%emt 0:01:26][%cal Oh2h4]} Bd5 {[%emt 0:00:26]} 30. Rab1 {[%emt 0:00:29]} Ba2 {[%emt 0:01:14]} 31. Ra1 {[%emt 0:02:55]} Be6 {[%emt 0:00:13]} 32. Qf6 {[%emt 0:00:23]} Kh7 {[%emt 0:00:53]} 33. Rad1 {[%emt 0:00:43][%cal Od4d5]} (33. Nb3 {simplifies} Qxb4 34. Nc5 Qxd4 35. Qxd4 Rxd4 36. Nxe6 Rd6 37. Nxg5+ hxg5 38. Ra5) 33... Rd5 $1 {[%emt 0:00:09][%cal Od5f5]} 34. h3 {[%emt 0:04:33]} Qxb4 $2 {[%emt 0:00:35][%mdl 8192] Black cannot hold the game after this.} (34... Rc7 $11 {and Black is okay.}) 35. Rxe6 $1 $18 {[%emt 0:00:36]} fxe6 {[%emt 0:00:05]} 36. Qf7+ {[%emt 0:00:11]} (36. Qxe6 Rdd8 $16 (36... Qa4 $2 37. Qf7+ Kh8 38. Re1 $18)) 36... Kh8 {[%emt 0:00:05][%cal Ob4f8] ...Qf8! is the strong threat.} 37. Qxe6 {[%emt 0:00:25]} Rcd8 {[%emt 0:01:36]} (37... Qxa5 38. Qxc8+ (38. Qxh6+ Kg8 $18) 38... Qd8 39. Qxa6 Rd6) 38. Qxh6+ {[%emt 0:00:19]} Kg8 {[%emt 0:00:01]} 39. Qg6+ {[%emt 0:01:13]} Kh8 {[%emt 0:00:35]} 40. Nc6 {[%emt 0:01:17]} Qd6 {[%emt 0:00:53]} 41. Qh5+ {[%emt 0:30:10]} Kg7 {[%emt 0:30:02]} 42. Nxd8 {[%emt 0:00:27]} Qxd8 {[%emt 0:00:04]} 43. Qe2 {[%emt 0:02:17]} a5 {[%emt 0:00:19]} 44. Qa6 {[%emt 0:04:28] Strongly threatening Rb1.} Qc7 {[%emt 0:00:45]} 45. Qe6 {[%emt 0:01:38]} Rd7 {[%emt 0:00:00]} (45... Qd6 46. Qe4 Qd7) 46. d5 {[%emt 0:00:00] Black must now prevent d6.} Rf7 {[%emt 0:00:00]} 47. Qe3 {[%emt 0:00:00] Weighted Error Value: White=0.22 (precise) /Black=0.59.  Loses game:     	---       	Black=1      Mistake:       	White=4     	Black=4      Inaccurate:     	White=2     	Black=2      OK:         	White=12    	Black=8      Best:        	White=1     	Black=4      Strong:       	White=1     	Black=1} (47. d6 $142 Qd7 48. Qe5+ Kh6 49. Rd5 (49. Qxa5 Qe6 $18)) 1-0

[Event "Reykjavik Open 2024"]
[Site "Reykjavik"]
[Date "2024.03.18"]
[Round "6.9"]
[White "Wadsworth, Matthew J"]
[Black "Maze, Sebastien"]
[Result "0-1"]
[ECO "E68"]
[WhiteElo "2450"]
[BlackElo "2551"]
[Annotator "TA"]
[PlyCount "110"]
[EventDate "2024.03.12"]
[EventCountry "ISL"]
[SourceTitle "playchess.com"]
[Source "ChessBase"]
[SourceQuality "1"]
[TimeControl "40/5400+30:1800+30"]

{[%evp 15,110,26,51,30,48,39,56,50,53,53,68,66,70,68,62,43,77,64,77,60,70,43,36,39,60,42,20,7,16,0,0,0,43,0,0,0,0,-47,-38,-97,-43,-93,-85,-112,-110,-99,-105,-122,-122,-115,0,0,-6,-41,0,-150,-164,-142,-154,-159,-168,-231,-206,-327,-301,-370,-363,-373,-387,-391,-350,-441,-431,-531,-556,-512,-498,-520,-512,-483,-482,-1061,-1264,-1494,-1101,-1540,-1480,-1446,-1324,-4134,-2193,-29974,-29972,-29975,-29976,-29974,-29973]} 1. d4 {[%emt 0:00:39]} Nf6 {[%emt 0:01:40]} 2. c4 {[%emt 0:00:16]} g6 {[%emt 0:00:21]} 3. Nf3 {[%emt 0:00:17]} Bg7 {[%emt 0:00:04]} 4. g3 {[%emt 0:00:10]} d6 {[%emt 0:00:28]} 5. Bg2 {[%emt 0:00:32]} O-O {[%emt 0:00:06]} 6. Nc3 {[%emt 0:00:21]} Nbd7 {[%emt 0:00:07]} 7. O-O {[%emt 0:00:25]} e5 {[%emt 0:00:13]} 8. e4 {[%emt 0:00:39]} Re8 {[%emt 0:01:46]} 9. Re1 {[%emt 0:02:45]} a6 {[%emt 0:00:16]} 10. b3 {[%emt 0:02:18]} Rb8 {[%emt 0:00:25]} 11. d5 {[%emt 0:03:09] White is slightly better.} a5 {[%emt 0:00:29]} 12. a3 {[%emt 0:01:33]} Ra8 {[%emt 0:00:07]} 13. Rb1 {[%emt 0:01:37]} Nb6 {[%emt 0:10:00][%cal Oa5a4]} 14. Bf1 {[%emt 0:05:23]} Bd7 {[%emt 0:00:14]} 15. h3 {[%emt 0:01:59]} Qe7 {[%emt 0:10:15]} 16. Be3 {[%emt 0:07:35]} Rec8 {[%emt 0:01:43]} 17. Nd2 {[%emt 0:08:59]} Qf8 {[%emt 0:02:17]} 18. b4 {[%emt 0:08:34]} axb4 {[%emt 0:00:32]} 19. axb4 {[%emt 0:00:07]} Bh6 {[%emt 0:02:24]} 20. Qf3 {[%emt 0:04:57]} Bxe3 {[%emt 0:01:37]} 21. Rxe3 {[%emt 0:02:29]} Ne8 {[%emt 0:02:10]} 22. Nb3 {[%emt 0:03:58]} Na4 {[%emt 0:03:07]} 23. c5 {[%emt 0:06:35]} Ng7 {[%emt 0:06:24]} 24. cxd6 {[%emt 0:03:45]} cxd6 {[%emt 0:01:36]} 25. Nxa4 {[%emt 0:01:44]} Bxa4 {[%emt 0:07:51]} 26. Na5 {[%emt 0:00:35]} (26. Ra1 $11) 26... f5 {[%emt 0:00:30]} 27. Bd3 {[%emt 0:10:36]} (27. Nxb7 $2 Rcb8 (27... Bc2 28. Rc1 $11) 28. Nxd6 (28. Na5 $2 Rxa5 29. Ra3 Raa8 $19) 28... Qxd6 $19) (27. Ra1 $15 Bc2 28. exf5) 27... Rc7 {[%emt 0:03:55]} ({Better is} 27... f4 $17 28. gxf4 exf4) 28. Ree1 {[%emt 0:06:50]} (28. g4 $15) 28... Rf7 $17 {[%emt 0:06:14]} 29. Nc4 {[%emt 0:02:22]} fxe4 {[%emt 0:00:43]} 30. Qxe4 {[%emt 0:00:16] [#]} Bd7 $1 {[%emt 0:00:08]} (30... Rxf2 31. Nb6 $11 (31. Nxd6 $2 Ra2 $19) (31. Nxd6 $2 Ra2 $19)) 31. Ra1 {[%emt 0:02:56]} (31. Nb6 $2 Bf5 32. Qe2 Bxd3 33. Qxd3 Ra2 $19) 31... Rxa1 {[%emt 0:15:28]} (31... Rxf2 $2 32. Rxa8 Qxa8 33. Kxf2 $18) 32. Rxa1 {[%emt 0:00:02]} Bf5 {[%emt 0:00:13]} (32... Bxh3 33. Nb6 Bf5 (33... Rxf2 $2 34. Ra8 $18) 34. Qe3 $15) (32... Rxf2 $17 {Hoping for ...Bf5.} 33. Nb6 (33. Nxd6 $2 Rb2 $19) 33... Be8 (33... Bxh3 $2 34. Ra8 $18)) 33. Qe3 $1 $11 {[%emt 0:01:59]} Bxd3 {[%emt 0:00:05]} 34. Qxd3 {[%emt 0:00:13]} Rxf2 {[%emt 0:00:15] [#] aiming for ...Rf3.} 35. Rf1 {[%emt 0:01:35] Black continues to play with concentration.} ({White must play} 35. Nxd6 $1 $11 Rb2 (35... Rf3 36. Qxf3 Qxf3 37. Ra8+ $11) 36. Ne4 (36. Nxb7 $2 {gets mated.} Qf2+ 37. Kh1 Qh2#) 36... Qxb4 37. d6) 35... Rxf1+ $17 {[%emt 0:00:38]} 36. Qxf1 {[%emt 0:00:01][%mdl 4096] Endgame. KQN-KQN} Qd8 {[%emt 0:05:51]} 37. g4 {[%emt 0:01:40]} Ne8 {[%emt 0:00:32]} 38. Qf2 {[%emt 0:00:53]} (38. Qe1 {was necessary.}) 38... Qc7 $19 {[%emt 0:03:52]} 39. Nd2 {[%emt 0:01:42]} (39. Qf1 $142) 39... Qc2 {[%emt 0:04:32]} 40. g5 {[%emt 0:04:51]} Qd3 {[%emt 0:00:49][%csl LRd5,LRh3]} 41. h4 {[%emt 0:31:39]} Qxd5 {[%emt 0:30:49]} 42. Qe3 {[%emt 0:01:19]} Kf7 {[%emt 0:05:05]} 43. Ne4 {[%emt 0:00:00]} Qd4 {[%emt 0:00:00]} 44. Qxd4 {[%emt 0:00:00]} exd4 {[%emt 0:00:00] KN-KN} 45. Kf2 {[%emt 0:00:00]} Ke6 {[%emt 0:00:00]} 46. Ke2 {[%emt 0:00:00]} Kd5 {[%emt 0:02:22]} 47. Kd3 {[%emt 0:00:00]} b5 {[%emt 0:00:00]} 48. Nf2 {[%emt 0:00:00]} (48. Nd2 $142) 48... Ng7 {[%emt 0:00:00]} 49. Ng4 {[%emt 0:00:00]} Nh5 {[%emt 0:00:00]} 50. Kd2 {[%emt 0:00:00]} Kc4 {[%emt 0:00:00]} 51. Nf6 {[%emt 0:00:00]} Ng3 {[%emt 0:00:00]} (51... Kxb4 $2 52. Kd3 $19) 52. Nxh7 {[%emt 0:00:00]} Nf5 {[%emt 0:00:00]} ({Not} 52... Kxb4 53. Nf8 $15) 53. Nf8 {[%emt 0:00:00]} Nxh4 {[%emt 0:00:00] Black mates.} 54. Ne6 {[%emt 0:00:00]} Nf3+ {[%emt 0:00:00]} 55. Ke2 {[%emt 0:00:00]} Ne5 {[%emt 0:00:00] Weighted Error Value: White=0.37/Black=0.10 (very precise) .  Mistake:       	White=7     	Black=2      Inaccurate:     	White=4     	Black=3      OK:         	White=9     	Black=19     Best:        	---       	Black=1      Strong:       	White=1     	Black=1} 0-1

[Event "Reykjavik Open 2024"]
[Site "Reykjavik"]
[Date "2024.03.18"]
[Round "6.10"]
[White "Adhiban, B.."]
[Black "Large, Peter G"]
[Result "1-0"]
[ECO "C65"]
[WhiteElo "2541"]
[BlackElo "2262"]
[Annotator "TA"]
[PlyCount "68"]
[EventDate "2024.03.12"]
[EventCountry "ISL"]
[SourceTitle "playchess.com"]
[Source "ChessBase"]
[SourceQuality "1"]
[TimeControl "40/5400+30:1800+30"]

{[%evp 14,68,34,60,51,46,54,28,27,30,89,97,91,79,93,81,165,79,66,86,78,95,101,102,111,100,108,39,33,36,0,27,64,22,44,13,56,59,91,97,129,0,37,0,183,177,627,339,799,662,29991,29992,29993,29994,29994,29992,29999]} 1. e4 {[%emt 0:00:19]} e5 {[%emt 0:03:00]} 2. Nf3 {[%emt 0:00:04]} Nc6 {[%emt 0:00:07]} 3. Bb5 {[%emt 0:00:12]} Nf6 {[%emt 0:02:48]} 4. O-O {[%emt 0:00:10]} Bc5 {[%emt 0:00:35]} 5. Nxe5 {[%emt 0:00:23]} Nxe5 {[%emt 0:00:13]} 6. d4 {[%emt 0:00:03]} c6 {[%emt 0:00:52]} 7. dxe5 {[%emt 0:17:59]} Nxe4 {[%emt 0:00:11]} 8. Bd3 {[%emt 0:00:19]} d5 {[%emt 0:01:13]} 9. exd6 {[%emt 0:01:06]} Nf6 {[%emt 0:00:32][%cal Oc8e6]} 10. Bg5 {[%emt 0:17:45]} Bxd6 {[%emt 0:14:36] White has an edge.} 11. Nc3 {[%emt 0:08:25]} Qc7 {[%emt 0:06:34]} (11... Bxh2+ $2 12. Kxh2 O-O 13. Kg1 $18) (11... Be6 $11 {remains equal.}) 12. Bxf6 $16 {[%emt 0:02:27]} gxf6 {[%emt 0:00:52]} 13. Ne4 $1 {[%emt 0:00:25] aiming for Bc4.} Bxh2+ {[%emt 0:05:26]} 14. Kh1 {[%emt 0:00:08] f4 is the strong threat.} Be5 {[%emt 0:00:05] [#]} (14... h5 $16) 15. f4 $1 {[%emt 0:03:07][%mdl 512]} Bxb2 {[%emt 0:05:33][%cal Of6f5] And now ...f5! would win.} (15... Bxf4 $2 16. Nxf6+ Ke7 17. Qh5 $18) (15... f5 16. fxe5) 16. Rb1 {[%emt 0:00:54]} f5 {[%emt 0:01:01]} 17. Ng3 {[%emt 0:04:33]} Bf6 {[%emt 0:05:45]} 18. Bxf5 {[%emt 0:01:43]} Bxf5 {[%emt 0:13:20]} 19. Nxf5 {[%emt 0:00:03] White threatens Re1+ and mate.} Rd8 {[%emt 0:00:23]} 20. Re1+ {[%emt 0:08:54]} ({Better is} 20. Qh5 $16 h6 21. Rbd1 (21. Nxh6 $2 Rd5 $19)) 20... Kf8 $14 {[%emt 0:01:00]} 21. Qh5 {[%emt 0:00:15][%mdl 1024] White has compensation.} h6 $1 {[%emt 0:00:18]} 22. Re4 {[%emt 0:00:53][%cal Oc2c4]} (22. Nxh6 $2 Rd5 (22... Qxf4 23. Qxf7#) 23. f5 Bg7 $19 (23... Kg7 $2 24. Qg4+ Kf8 25. Rb3 $19)) 22... Qd7 {[%emt 0:13:23]} 23. c4 {[%emt 0:00:52][%cal Oc4c5] White is much more active.} (23. Nxh6 $2 Kg7 $19) 23... b6 {[%emt 0:01:17][%cal Of6g5,Bb7b6,Bb6b5][%mdl 32]} 24. Rbe1 {[%emt 0:00:10][%cal Oh1h2]} (24. Nxh6 $2 {perishes.} Bg7 25. Qh3 Rxh6 $19 (25... Qxh3+ $2 26. gxh3 Rxh6 27. Rb3 $19)) (24. Kh2 $5) 24... a6 {[%emt 0:01:18]} (24... c5 $5) 25. Kh2 $36 {[%emt 0:06:45][%mdl 2048] White is more active.} (25. Nxh6 $2 Bg7 26. Re7 Rxh6 $19) 25... b5 {[%emt 0:01:30]} 26. Ne3 {[%emt 0:07:27]} (26. Nxh6 $2 {too greedy.} Kg7 $19) 26... Bd4 {[%emt 0:16:41] [#]} 27. Nf5 {[%emt 0:11:14]} (27. c5 $1 $16 {Strongly threatening Rd1.} Re8 28. Rxe8+ Qxe8 29. Nc2) 27... Bf6 {[%emt 0:00:06]} 28. Ne3 {[%emt 0:00:09]} (28. Nxh6 $2 {loses.} Kg7 $19) (28. cxb5 $14 cxb5 29. Ng3 (29. Nxh6 $2 Kg7 $19)) 28... Bd4 $1 $18 {[%emt 0:00:06] [#]} 29. c5 $1 {[%emt 0:02:01] Black must now prevent Rd1.} Bxe3 $2 {[%emt 0:02:06]} (29... Re8 30. Rxe8+ Qxe8) 30. R1xe3 {[%emt 0:00:04]} Qd5 $2 {[%emt 0:00:33]} (30... Rh7 31. Qh4 Rg7 32. Qxh6 Kg8) 31. Re5 {[%emt 0:01:01]} Qxa2 {[%emt 0:00:32]} 32. Qh4 {[%emt 0:00:22] White mates.} Kg7 {[%emt 0:01:47]} 33. Rg3+ {[%emt 0:00:43]} Kh7 {[%emt 0:00:07]} 34. Rh5 {[%emt 0:00:44][%csl Gh4][%cal Rh5h6]} Rde8 {[%emt 0:00:00] Weighted Error Value: White=0.16 (very precise) /Black=0.52.  Mistake:       	White=4     	Black=4      Inaccurate:     	White=4     	Black=5      OK:         	White=7     	Black=5      Best:        	White=2     	Black=3      Strong:       	White=2     	Black=2} 1-0

[Event "Reykjavik Open 2024"]
[Site "Reykjavik"]
[Date "2024.03.18"]
[Round "6.11"]
[White "Heimisson, Hilmir Freyr"]
[Black "Yilmazyerli, Mert"]
[Result "1/2-1/2"]
[ECO "E36"]
[WhiteElo "2355"]
[BlackElo "2526"]
[Annotator "TA"]
[PlyCount "22"]
[EventDate "2024.03.12"]
[EventCountry "ISL"]
[SourceTitle "playchess.com"]
[Source "ChessBase"]
[SourceQuality "1"]
[TimeControl "40/5400+30:1800+30"]

{[%evp 15,22,0,0,0,0,0,0,0,0]} 1. d4 {[%emt 0:00:02]} Nf6 {[%emt 0:06:42]} 2. c4 {[%emt 0:00:39]} e6 {[%emt 0:00:08]} 3. Nc3 {[%emt 0:01:32]} Bb4 {[%emt 0:00:06]} 4. Qc2 {[%emt 0:00:13]} d5 {[%emt 0:00:11]} 5. a3 {[%emt 0:02:15]} Bxc3+ {[%emt 0:00:33]} 6. Qxc3 {[%emt 0:00:19]} O-O {[%emt 0:00:11]} 7. Nf3 {[%emt 0:00:54]} dxc4 {[%emt 0:02:05]} 8. Qxc4 {[%emt 0:00:12]} b6 {[%emt 0:00:11] Die Stellung ist ausgeglichen.} 9. Bg5 {[%emt 0:01:32]} Ba6 {[%emt 0:02:22]} 10. Qa4 {[%emt 0:01:06]} h6 {[%emt 0:00:05]} 11. Bh4 {[%emt 0:01:03]} c5 {[%emt 0:00:16] Hier war wenig los.   Gewichteter Fehlerwert: Weiß=0.00 (makellos) /Schwarz=0.00 (makellos) .  OK:         	Weiß=1     	Schwarz=3} 1/2-1/2

[Event "Reykjavik Open 2024"]
[Site "Reykjavik"]
[Date "2024.03.18"]
[Round "6.12"]
[White "Manish Anto Cristiano F"]
[Black "Suleymenov, Alisher"]
[Result "0-1"]
[ECO "B96"]
[WhiteElo "2286"]
[BlackElo "2506"]
[Annotator "TA"]
[PlyCount "68"]
[EventDate "2024.03.12"]
[EventCountry "ISL"]
[SourceTitle "playchess.com"]
[Source "ChessBase"]
[SourceQuality "1"]
[TimeControl "40/5400+30:1800+30"]

{[%evp 14,68,20,21,55,37,32,35,31,29,32,32,33,-16,0,0,0,0,20,-89,-67,-112,-84,-91,-42,-84,-94,-102,-112,-109,-110,-91,-10,-180,-230,-214,-216,-226,-226,-255,-208,-301,-317,-306,-305,-293,-293,-29985,-1179,-29979,-1095,-5958,-6291,-5700,-5700,-29997,-29998]} 1. e4 {[%emt 0:03:16]} c5 {[%emt 0:01:22]} 2. Nf3 {[%emt 0:01:59]} d6 {[%emt 0:00:05]} 3. d4 {[%emt 0:00:21]} cxd4 {[%emt 0:00:06]} 4. Nxd4 {[%emt 0:00:47]} Nf6 {[%emt 0:00:05]} 5. Nc3 {[%emt 0:00:12]} a6 {[%emt 0:00:04]} 6. Bg5 {[%emt 0:00:25]} e6 {[%emt 0:00:10]} 7. f4 {[%emt 0:00:30]} h6 {[%emt 0:00:07]} 8. Bh4 {[%emt 0:00:17]} Nbd7 {[%emt 0:00:08]} 9. Qe2 {[%emt 0:01:13]} e5 {[%emt 0:00:08]} 10. fxe5 {[%emt 0:01:20]} Nxe5 {[%emt 0:00:07] Weiß steht etwas besser.} 11. O-O-O {[%emt 0:02:30]} Be7 {[%emt 0:00:05]} 12. Kb1 {[%emt 0:12:16]} O-O {[%emt 0:00:34]} 13. Bg3 {[%emt 0:16:49]} (13. Nf3 $14 Ng6 14. Bg3) 13... Qc7 {[%emt 0:15:15]} 14. Nf5 {[%emt 0:02:29]} Bxf5 {[%emt 0:06:14]} 15. exf5 {[%emt 0:00:08]} Rac8 {[%emt 0:01:06]} 16. Bxe5 {[%emt 0:06:29]} (16. Bh4 $11 {hält das Gleichgewicht.}) 16... dxe5 $17 {[%emt 0:00:05]} 17. g4 {[%emt 0:00:30]} Qb6 {[%emt 0:04:17]} 18. Rd3 {[%emt 0:12:59][%cal Of1g2]} Bb4 {[%emt 0:09:37] Schwarz steht aktiver.} (18... e4 $17 19. Nxe4 Nxe4 20. Qxe4 Rfe8) 19. Ne4 {[%emt 0:05:05]} Nxe4 {[%emt 0:03:13]} 20. Qxe4 {[%emt 0:00:08]} Bc3 {[%emt 0:00:32][%csl Gc3][%cal Rb6b2]} 21. b3 {[%emt 0:03:52]} Qc5 $40 {[%emt 0:20:18][%mdl 128] ...Rfd8 ist eine echte Drohung. Weiss ist in Schwierigkeiten.} 22. f6 {[%emt 0:06:47]} gxf6 {[%emt 0:07:21]} (22... Qa3 23. Rxc3 Rxc3 24. fxg7 $15) ({Besser ist} 22... Bd4 $1 $17 {[%csl Gc8][%cal Rc5c2]} 23. c4 Qc6 (23... gxf6 24. Rg3 $15) 24. Qxc6 bxc6 (24... Rxc6 25. fxg7 Rd8 26. Bg2 $11)) 23. Rxc3 {[%emt 0:04:33] Der Zug kostet die Partie für Weiß.} Qxc3 $19 {[%emt 0:00:06]} 24. Bd3 {[%emt 0:00:22][%csl Gd3][%cal Re4h7] [#]} Rfd8 $1 {[%emt 0:01:21]} 25. Qh7+ {[%emt 0:04:52]} Kf8 {[%emt 0:00:04]} 26. Rf1 {[%emt 0:01:34] Droht Qh8+ und aus.} Ke7 {[%emt 0:04:46]} 27. Qxh6 {[%emt 0:01:23] [#]} (27. Bg6 {ist eine bessere Verteidigung.} Rf8 28. Be4) 27... Rc6 $1 {[%emt 0:00:26] ...Rxd3 wäre nun fies.} 28. Qh7 {[%emt 0:00:50]} a5 {[%emt 0:12:18][%cal Oa5a4] Weiss muss nun ...a4! beachten.} 29. g5 {[%emt 0:03:34]} Rxd3 {[%emt 0:01:26]} (29... fxg5 $2 30. Qxf7+ (30. Rxf7+ Ke6 $18) 30... Kd6 31. Rd1 $18 (31. Qxb7 Kc5 $18)) 30. cxd3 {[%emt 0:00:39]} (30. Qxd3 $19 Qxd3 (30... fxg5 31. Qf5 $11) 31. cxd3 fxg5 32. Rg1) 30... Qc2+ {[%emt 0:00:04]} (30... fxg5 31. Rxf7+ (31. Qxf7+ Kd8 $11) 31... Ke6 32. Qf5+ (32. Rxb7 $2 Qc1#) 32... Kd5 33. Rd7+ (33. Qxg5 Qxd3+ 34. Kb2 Qc3+ 35. Ka3 Qc1+ 36. Qxc1 Rxc1 $11) 33... Rd6 34. Qf3+ (34. Rxb7 Qe1+ 35. Kb2 Qd2+ 36. Ka3 Qc1+ 37. Ka4 Qf4+ 38. Qe4+ Qxe4+ 39. dxe4+ Kxe4 $11) (34. Rxd6+ Kxd6 35. Qxg5 Qxd3+ 36. Kc1 Qe4 $11) 34... Kc5 35. Rc7+ (35. Qxb7 $2 Qxd3+ 36. Kb2 Qd4+ 37. Ka3 Rxd7 $19) 35... Rc6 36. Rxb7 $16) 31. Ka1 {[%emt 0:00:06]} Qd2 {[%emt 0:00:16]} (31... fxg5 $2 {geht unter.} 32. Rxf7+ Ke6 33. Re7+ (33. Rxb7 $2 Qc1#) 33... Kd5 34. Rd7+ (34. Rxb7 $2 Qc1#) 34... Rd6 35. Qf7+ (35. Rxb7 $2 Qc1#) 35... Kc5 36. Rc7+ (36. Rxb7 $2 Qc1#) 36... Rc6 37. Qe7+ (37. Rxb7 $2 Qc1#) 37... Kd4 38. Rd7+ (38. Rxb7 $2 Qc1#) 38... Ke3 39. Qxe5+ (39. Qxg5+ Ke2 $14) 39... Kd2 40. Qxg5+ (40. Qxa5+ Kd1 $19) 40... Kd1 41. Qg4+ (41. Qxa5 $2 Qc1#) 41... Qe2 42. Qxe2+ Kxe2 43. Rxb7 $18) (31... a4 $142 32. gxf6+ Kd6 (32... Rxf6 $2 33. Qh4 $19) 33. Qh6 Qc3+ (33... axb3 34. Qf8+ Kc7 35. Qxf7+ Kb8 36. Qg8+ Ka7 37. Qxb3 $16) 34. Kb1 Qxd3+ 35. Kb2 Qd4+ (35... Qxf1 36. Qf8+ Ke6 37. Qe8+ Kf5 38. Qd7+ Kg5 39. Qd2+ Qf4 40. Qe1 axb3 41. axb3 Qd4+ 42. Kb1 Rc3 43. h4+ Kg6 44. Qxc3 Qxc3 45. Ka2 e4 46. h5+ Kxh5 47. Ka3 b5 48. Ka2 e3 49. Ka3 e2 50. Ka2 e1=Q 51. Ka3 Qea1#) 36. Kb1 a3 (36... Qd3+ 37. Kb2 Rc2+ 38. Ka3 axb3 39. Qf8+ Kc6 40. Qc8+ Kb6 41. Qxc2 bxc2+ 42. Kb2 Qxf1 43. Kxc2 Kc5 44. Kc3 Qf3+ 45. Kc2 Kc4 46. Kb2 Qg2+ 47. Ka3 Qxh2 48. Ka4 Qxa2#) 37. Qf8+ Kc7 38. Qe7+ Kb6 39. Qxa3 Qd3+ 40. Kb2 Qe2+ (40... Qxf1 $2 41. Qb4+ Qb5 42. Qe1 $19) (40... Rc2+ 41. Kb1 Rxh2+ 42. Ka1 Qxf1+ 43. Qc1 Qxc1#) 41. Kb1 Qxf1+ 42. Kb2 Qc1#) 32. gxf6+ {[%emt 0:00:46]} Rxf6 {[%emt 0:00:35]} 33. Qh3 {[%emt 0:01:04] [#]} a4 $1 {[%emt 0:00:43][%mdl 512]} 34. Kb1 {[%emt 0:04:45]} (34. Qh4 Qc3+) 34... a3 {[%emt 0:00:32] Gewichteter Fehlerwert: Weiß=0.71/Schwarz=0.55.  Verlustzug:     	Weiß=1     	---        Fehler:       	Weiß=4     	Schwarz=2     Ungenau:       	Weiß=3     	---        OK:         	Weiß=8     	Schwarz=8     Bester:       	---       	Schwarz=1     Stark:        	---       	Schwarz=2} 0-1